Workbook

Sheet Waste Volumes
A4: COUNTY | B4: Name | F4: DATE
A5: OWNER | B5: Farmer's Name | F5: ADDRESS
A6: PREPARER | F6: TITLE | I6: DATE | J6: =G4 -> 00:00:00
A7: CHECKED | F7: TITLE | I7: DATE
A9: LIVESTOCK | E9: 1 | G9: 2 | I9: 3 | K9: 4
A10: A. ANIMALS (dairy cattle, beef, swine, etc.) | E10: DAIRY
A11: B. NUMBER OF ANIMALS
A12: B1. % OF MANURE ENTERING STRUCTURE | E12: 100 | F12: % | H12: % | J12: % | L12: %
A13: C. WEIGHT OF ANIMALS (lbs.) | E13: 0 | F13: lbs. | H13: lbs. | J13: lbs. | L13: lbs.
A14: D. AVERAGE ANNUAL MILK PRODUCTION | E14: 0 | F14: lbs./yr. | G14: XXXXXXXX | I14: XXXXXXXX | K14: XXXXXXXX
A15: E. WASTE - (cu ft per day per AU) | E15: =0.00004*E14+0.8 -> 0.8 | F15: cu. ft. | H15: cu. ft. | J15: cu. ft. | L15: cu. ft.
A16: F. STORAGE PERIOD - days | E16: 0 | F16: days | H16: days | J16: days | L16: days
A17: G. MANURE VOLUME cu ft (BxCxExF) | E17: =E11/1000*(E12/100)*E13*E15*E16 -> 0 | F17: cu. ft. | G17: =G11/1000*(G12/100)*G13*G15*G16 -> 0 | H17: cu. ft. | I17: =I11/1000*(I12/100)*I13*I15*I16 -> 0 | J17: cu. ft. | K17: =K11/1000*(K12/100)*K13*K15*K16 -> 0 | L17: cu. ft.
A18: H. BEDDING TYPE | E18: Sawdust | G18: None | I18: None | K18: None
A19: BEDDING VOLUME(cu ft/day*cow) or | E19: 0 | F19: cu. ft. | H19: cu. ft. | I19: 0 | J19: cu. ft. | K19: 10 | L19: cu. ft.
A20: BEDDING VOLUME (Total cu ft/day) | E20: 0 | F20: cu. ft. | G20: 0 | H20: cu. ft. | I20: 0 | J20: cu. ft. | K20: 0 | L20: cu. ft.
A21: BEDDING REDUCTION FACTOR (See note) | E21: 0.5 | G21: 0.5 | I21: 0.5 | K21: 0.5 | M21: NOTE: Use 1.0 for
A22: TOTAL BEDDING | E22: =IF(E20=0,E11*E16*E19*E21,E16*E20*E21) -> 0 | F22: cu. ft. | G22: =IF(G20=0,G11*G16*G19*G21,G16*G20*G21) -> 0 | H22: cu. ft. | I22: =IF(I20=0,I11*I16*I19*I21,I16*I20*I21) -> 0 | J22: cu. ft. | K22: =IF(K20=0,K11*K16*K19*K21,K16*K20*K21) -> 0 | L22: cu. ft. | M22: sand, 0.5 for all
A23: I. MANURE + BEDDING VOLUME | E23: =E17+E22 -> 0 | F23: cu. ft. | G23: =G17+G22 -> 0 | H23: cu. ft. | I23: =I17+I22 -> 0 | J23: cu. ft. | K23: =K17+K22 -> 0 | L23: cu. ft. | M23: other bedding types
B26: MANURE STORAGE REQUIRED | E26: =E23+G23+I23+K23 -> 0 | F26: CU. FT.
A30: RUNOFF
B31: CONTRIBUTING AREA | G31: sq. ft.
B32: NORMAL RUNOFF | G32: in.
B33: 25 YR/24 HR RUNOFF | G33: in.
B34: STORAGE PERIOD (Largest of above) | F34: =LARGE((E16,G16,I16,K16),1) -> 0 | G34: days
B35: RUNOFF STORAGE REQUIRED (cu. ft.) | F35: =F31*(F32+F33)/12 -> 0 | G35: cu. ft.
A38: WASH WATER | D38: Water Used Per Washing
B39: EQUIPMENT | E39: Gallons per day
B40: WASHING MACHINE (TOWELS) | E40: Gallons per day
B41: WATER SOFTENER | E41: Gallons per day
B42: PIPELINE | E42: Gallons per day
B43: BULK TANK | E43: Gallons per day
B44: MILK HOUSE FLOOR | E44: Gallons per day
B45: WASHING CATTLE | E45: Gallons per day
C46: Total | D46: =SUM(D39:D45) -> 0 | E46: Gallons per day
C48: Total | D48: =SUM(D39:D45)/7.48*F34 -> 0 | E48: cu. ft.
A51: TOTAL STORAGE REQUIRED
B52: MANURE +BEDDING | D52: =E26 -> 0 | E52: cu. ft.
B53: RUNOFF | D53: =F35 -> 0 | E53: cu. ft.
B54: WASH WATER | D54: =D48 -> 0 | E54: cu. ft.
B56: TOTAL | D56: =SUM(D52:D54) -> 0 | E56: cu. ft. per | F56: =F34 -> 0 | G56: days

Sheet Rainfall
A1: State = | B1: PA
A2: County = | B2: Columbia
A3: Using Procedure Outlined in SCS ASMF N12-76.1 - N12-76.13
A4: Data Collected from the following internet web site on Feb, 14, 1999:
A5: www.psu.edu/docs/CASDEPT/AGRONOMY/EXTENSION/NMPennState/raindata/counties3.html
A6: Month | B6: Direct Precipitation Inches | C6: % of Mean Precipitation Paved Lot (CN - 97) | D6: % of Mean Precipitation Unpaved Lot (CN - 90) | E6: Drainage Area, Inches of Runoff - Paved | F6: Drainage Area, Inches of Runoff - Unpaved | G6: *Direct Evaporation Inches | H6: Net Precipitation Inches
A7: January | B7: 2.5 | C7: 0.48 | D7: 0.17 | E7: =B7*C7 -> 1.2 | F7: =B7*D7 -> 0.425 | G7: 0.9 | H7: =B7-G7 -> 1.6
A8: February | B8: 2.4 | C8: 0.5 | D8: 0.19 | E8: =B8*C8 -> 1.2 | F8: =B8*D8 -> 0.456 | G8: 0.9 | H8: =B8-G8 -> 1.5
A9: March | B9: 2.9 | C9: 0.5 | D9: 0.19 | E9: 1.45 | F9: 0.551 | G9: 1.5 | H9: 1.4
A10: April | B10: 3.6 | C10: 0.51 | D10: 0.2 | E10: 1.836 | F10: 0.72 | G10: 2.1 | H10: 1.5
A11: May | B11: 4.2 | C11: 0.51 | D11: 0.2 | E11: 2.142 | F11: 0.84 | G11: 3 | H11: 1.2
A12: June | B12: 3.5 | C12: 0.54 | D12: 0.23 | E12: 1.89 | F12: 0.805 | G12: 3.9 | H12: -0.4
A13: July | B13: 4.6 | C13: 0.54 | D13: 0.24 | E13: 2.484 | F13: 1.104 | G13: 4.5 | H13: 0.1
A14: August | B14: 4.2 | C14: 0.58 | D14: 0.27 | E14: 2.436 | F14: 1.134 | G14: 4.2 | H14: 0
A15: September | B15: 3.1 | C15: 0.58 | D15: 0.27 | E15: 1.798 | F15: 0.837 | G15: 3.6 | H15: -0.5
A16: October | B16: 2.9 | C16: 0.53 | D16: 0.22 | E16: 1.537 | F16: 0.638 | G16: 2.7 | H16: 0.2
A17: November | B17: 3.2 | C17: 0.53 | D17: 0.22 | E17: 1.696 | F17: 0.704 | G17: 1.8 | H17: 1.4
A18: December | B18: 2.8 | C18: 0.48 | D18: 0.17 | E18: 1.344 | F18: 0.476 | G18: 0.9 | H18: 1.9
A19: Total= | B19: =SUM(B7:B18) -> 39.9
A21: Months | B21: Runoff, Paved Lot Inches | C21: Runoff, Unpaved Lot Inches | D21: Net Precipitation Inches
A22: Nov-Apr | B22: =SUM(E17:E18,E7:E10) -> 8.726 | C22: =SUM(F17:F18,F7:F10) -> 3.332 | D22: =SUM(H17:H18,H7:H10) -> 9.3
A23: May-Oct | B23: =SUM(E11:E16) -> 12.287 | C23: =SUM(F11:F16) -> 5.358 | D23: =SUM(H11:H16) -> 0.6
A25: 25 Yr Runoff
A26: Lot | B26: P25 | C26: Runoff Curve Number | D26: Runoff Inches (Table 2-2a, EFM-2)
A27: Paved | B27: 5.1 | C27: 97 | D27: 4.86
A28: Unpaved | B28: 5.1 | C28: 90 | D28: 3.97
A32: State = | B32: PA
A33: County = | B33: Centre
A34: Using Procedure Outlined in SCS ASMF N12-76.1 - N12-76.13
A35: Data Collected from the following internet web site on May 25, 2006:
A36: http://panutrientmgmt.cas.psu.edu/pdf/tm_appendix06.pdf
A37: Month | B37: Direct Precipitation Inches | C37: Direct Precipitation with Evaporation | E37: Drainage Area, Inches of Runoff - Paved | F37: Drainage Area, Inches of Runoff - Unpaved
A38: January | B38: 2.43 | C38: 1.63 | E38: 1.12 | F38: 0.36
A39: February | B39: 2.5 | C39: 1.7 | E39: 1.2 | F39: 0.43
A40: March | B40: 3.33 | C40: 1.93 | E40: 1.6 | F40: 0.57
A41: April | B41: 3.26 | C41: 1.26 | E41: 1.6 | F41: 0.59
A42: May | B42: 3.92 | C42: 1.12 | E42: 1.92 | F42: 0.71
A43: June | B43: 4.3 | C43: 0.7 | E43: 2.32 | F43: 0.99
A44: July | B44: 4.09 | C44: 0 | E44: 2.21 | F44: 0.94
A45: August | B45: 3.71 | C45: 0 | E45: 2.08 | F45: 0.93
A46: September | B46: 3.36 | C46: 0.06 | E46: 1.88 | F46: 0.84
A47: October | B47: 2.93 | C47: 0.43 | E47: 1.49 | F47: 0.59
A48: November | B48: 3.35 | C48: 1.65 | E48: 1.71 | F48: 0.67
A49: December | B49: 2.67 | C49: 1.87 | E49: 1.23 | F49: 0.4
A50: Total= | B50: =SUM(B38:B49) -> 39.85 | C50: =SUM(C38:C49) -> 12.35 | E50: =SUM(E38:E49) -> 20.36 | F50: =SUM(F38:F49) -> 8.02
A52: Months | B52: Runoff, Paved Lot Inches | C52: Runoff, Unpaved Lot Inches | D52: Net Precipitation Inches
A53: Nov-Apr | B53: =SUM(E48:E49,E38:E41) -> 8.46 | C53: =SUM(F48:F49,F38:F41) -> 3.02 | D53: =SUM(H48:H49,H38:H41) -> 0
A54: May-Oct | B54: =SUM(E42:E47) -> 11.9 | C54: =SUM(F42:F47) -> 5 | D54: =SUM(H42:H47) -> 0
A56: 25 Yr Runoff
A57: Lot | B57: P25 | C57: Runoff Curve Number | D57: Runoff Inches (Table 2-2a, EFM-2)
A58: Paved | B58: 5.2 | C58: 97 | D58: 4.85
A59: Unpaved | B59: 5.2 | C59: 90 | D59: 4.07
A67: State = | B67: PA
A68: County = | B68: Luzerne
A69: Using Procedure Outlined in SCS ASMF N12-76.1 - N12-76.13
A70: Data Collected from the following internet web site on Feb, 14, 1999:
A71: www.psu.edu/docs/CASDEPT/AGRONOMY/EXTENSION/NMPennState/raindata/counties3.html
A72: Month | B72: Direct Precipitation Inches | C72: % of Mean Precipitation Paved Lot (CN - 97) | D72: % of Mean Precipitation Unpaved Lot (CN - 90) | E72: Drainage Area, Inches of Runoff - Paved | F72: Drainage Area, Inches of Runoff - Unpaved | G72: *Direct Evaporation Inches | H72: Net Precipitation Inches
A73: January | B73: 2.1 | C73: 0.49 | D73: 0.18 | E73: =B73*C73 -> 1.029 | F73: =B73*D73 -> 0.378 | G73: 0.9 | H73: =B73-G73 -> 1.2
A74: February | B74: 2.2 | C74: 0.51 | D74: 0.2 | E74: =B74*C74 -> 1.122 | F74: =B74*D74 -> 0.44 | G74: 0.9 | H74: =B74-G74 -> 1.3
A75: March | B75: 2.7 | C75: 0.51 | D75: 0.2 | E75: 1.377 | F75: 0.54 | G75: 1.5 | H75: 1.2
A76: April | B76: 3.3 | C76: 0.51 | D76: 0.2 | E76: 1.683 | F76: 0.66 | G76: 3 | H76: 0.3
A77: May | B77: 3.8 | C77: 0.55 | D77: 0.24 | E77: 2.09 | F77: 0.912 | G77: 3.9 | H77: -0.1
A78: June | B78: 3.5 | C78: 0.55 | D78: 0.24 | E78: 1.925 | F78: 0.84 | G78: 4.5 | H78: -1
A79: July | B79: 4.1 | C79: 0.6 | D79: 0.29 | E79: 2.46 | F79: 1.189 | G79: 4.2 | H79: -0.1
A80: August | B80: 4.1 | C80: 0.6 | D80: 0.29 | E80: 2.46 | F80: 1.189 | G80: 3.6 | H80: 0.5
A81: September | B81: 3.1 | C81: 0.6 | D81: 0.29 | E81: 1.86 | F81: 0.899 | G81: 3.56 | H81: -0.46
A82: October | B82: 2.9 | C82: 0.54 | D82: 0.23 | E82: 1.566 | F82: 0.667 | G82: 2.7 | H82: 0.2
A83: November | B83: 3.2 | C83: 0.54 | D83: 0.23 | E83: 1.728 | F83: 0.736 | G83: 1.8 | H83: 1.4
A84: December | B84: 2.8 | C84: 0.49 | D84: 0.18 | E84: 1.372 | F84: 0.504 | G84: 0.9 | H84: 1.9
A85: Total= | B85: =SUM(B73:B84) -> 37.8
A87: Months | B87: Runoff, Paved Lot Inches | C87: Runoff, Unpaved Lot Inches | D87: Net Precipitation Inches
A88: Nov-Apr | B88: =SUM(E83:E84,E73:E76) -> 8.311 | C88: =SUM(F83:F84,F73:F76) -> 3.258 | D88: =SUM(H83:H84,H73:H76) -> 7.3
A89: May-Oct | B89: =SUM(E77:E82) -> 12.361 | C89: =SUM(F77:F82) -> 5.696 | D89: =SUM(H77:H82) -> -0.96
A91: 25 Yr Runoff
A92: Lot | B92: P25 | C92: Runoff Curve Number | D92: Runoff Inches (Table 2-2a, EFM-2)
A93: Paved | B93: 5.2 | C93: 97 | D93: 4.85
A94: Unpaved | B94: 5.2 | C94: 90 | D94: 4.07
A109: State = | B109: PA
A110: County = | B110: Lycoming
A111: Using Procedure Outlined in SCS ASMF N12-76.1 - N12-76.13
A112: Data Collected from the following internet web site on Feb, 14, 1999:
A113: www.psu.edu/docs/CASDEPT/AGRONOMY/EXTENSION/NMPennState/raindata/counties3.html
A114: Month | B114: Direct Precipitation Inches | C114: % of Mean Precipitation Paved Lot (CN - 97) | D114: % of Mean Precipitation Unpaved Lot (CN - 90) | E114: Drainage Area, Inches of Runoff - Paved | F114: Drainage Area, Inches of Runoff - Unpaved | G114: *Direct Evaporation Inches | H114: Net Precipitation Inches
A115: January | B115: 2.8 | C115: 0.45 | D115: 0.14 | E115: =B115*C115 -> 1.26 | F115: =B115*D115 -> 0.392 | G115: 0.8 | H115: =B115-G115 -> 2
A116: February | B116: 2.9 | C116: 0.48 | D116: 0.17 | E116: =B116*C116 -> 1.392 | F116: =B116*D116 -> 0.493 | G116: 0.8 | H116: =B116-G116 -> 2.1
A117: March | B117: 3.6 | C117: 0.48 | D117: 0.17 | E117: 1.728 | F117: 0.612 | G117: 1.4 | H117: 2.2
A118: April | B118: 3.5 | C118: 0.48 | D118: 0.18 | E118: 1.68 | F118: 0.63 | G118: 2 | H118: 1.5
A119: May | B119: 3.7 | C119: 0.49 | D119: 0.18 | E119: 1.813 | F119: 0.666 | G119: 2.8 | H119: 0.9
A120: June | B120: 4 | C120: 0.53 | D120: 0.22 | E120: 2.12 | F120: 0.88 | G120: 3.6 | H120: 0.4
A121: July | B121: 4 | C121: 0.53 | D121: 0.22 | E121: 2.12 | F121: 0.88 | G121: 4.2 | H121: -0.2
A122: August | B122: 3.2 | C122: 0.56 | D122: 0.25 | E122: 1.792 | F122: 0.8 | G122: 3.9 | H122: -0.7
A123: September | B123: 3.5 | C123: 0.56 | D123: 0.25 | E123: 1.96 | F123: 0.875 | G123: 3.4 | H123: 0.1
A124: October | B124: 3.2 | C124: 0.51 | D124: 0.2 | E124: 1.632 | F124: 0.64 | G124: 2.5 | H124: 0.7
A125: November | B125: 3.7 | C125: 0.51 | D125: 0.2 | E125: 1.887 | F125: 0.74 | G125: 1.7 | H125: 2
A126: December | B126: 3.4 | C126: 0.45 | D126: 0.14 | E126: 1.53 | F126: 0.476 | G126: 0.8 | H126: 2.6
A127: Total= | B127: =SUM(B115:B126) -> 41.5
A129: Months | B129: Runoff, Paved Lot Inches | C129: Runoff, Unpaved Lot Inches | D129: Net Precipitation Inches
A130: Nov-Apr | B130: =SUM(E125:E126,E115:E118) -> 9.477 | C130: =SUM(F125:F126,F115:F118) -> 3.343 | D130: =SUM(H125:H126,H115:H118) -> 12.4
A131: May-Oct | B131: =SUM(E119:E124) -> 11.437 | C131: =SUM(F119:F124) -> 4.741 | D131: =SUM(H119:H124) -> 1.2
A133: 25 Yr Runoff
A134: Lot | B134: P25 | C134: Runoff Curve Number | D134: Runoff Inches (Table 2-2a, EFM-2)
A135: Paved | B135: 4.9 | C135: 97 | D135: 4.55
A136: Unpaved | B136: 4.9 | C136: 90 | D136: 3.78
A151: State = | B151: PA
A152: County = | B152: Montour
A153: Using Procedure Outlined in SCS ASMF N12-76.1 - N12-76.13
A154: Data Collected from the following internet web site on Feb, 14, 1999:
A155: www.psu.edu/docs/CASDEPT/AGRONOMY/EXTENSION/NMPennState/raindata/counties3.html
A156: Month | B156: Direct Precipitation Inches | C156: % of Mean Precipitation Paved Lot (CN - 97) | D156: % of Mean Precipitation Unpaved Lot (CN - 90) | E156: Drainage Area, Inches of Runoff - Paved | F156: Drainage Area, Inches of Runoff - Unpaved | G156: *Direct Evaporation Inches | H156: Net Precipitation Inches
A157: January | B157: 2.6 | C157: 0.48 | D157: 0.17 | E157: =B157*C157 -> 1.248 | F157: =B157*D157 -> 0.442 | G157: 0.9 | H157: =B157-G157 -> 1.7
A158: February | B158: 2.6 | C158: 0.5 | D158: 0.19 | E158: =B158*C158 -> 1.3 | F158: =B158*D158 -> 0.494 | G158: 0.9 | H158: =B158-G158 -> 1.7
A159: March | B159: 3 | C159: 0.5 | D159: 0.19 | E159: 1.5 | F159: 0.57 | G159: 1.5 | H159: 1.5
A160: April | B160: 3.2 | C160: 0.5 | D160: 0.19 | E160: 1.6 | F160: 0.608 | G160: 2.1 | H160: 1.1
A161: May | B161: 3.7 | C161: 0.5 | D161: 0.19 | E161: 1.85 | F161: 0.703 | G161: 3 | H161: 0.7
A162: June | B162: 4.5 | C162: 0.55 | D162: 0.24 | E162: 2.475 | F162: 1.08 | G162: 3.9 | H162: 0.6
A163: July | B163: 3.5 | C163: 0.55 | D163: 0.24 | E163: 1.925 | F163: 0.84 | G163: 4.5 | H163: -1
A164: August | B164: 3.2 | C164: 0.58 | D164: 0.27 | E164: 1.856 | F164: 0.864 | G164: 4.2 | H164: -1
A165: September | B165: 4 | C165: 0.58 | D165: 0.27 | E165: 2.32 | F165: 1.08 | G165: 3.6 | H165: 0.4
A166: October | B166: 2.6 | C166: 0.53 | D166: 0.22 | E166: 1.378 | F166: 0.572 | G166: 2.7 | H166: -0.1
A167: November | B167: 3.2 | C167: 0.53 | D167: 0.22 | E167: 1.696 | F167: 0.704 | G167: 1.8 | H167: 1.4
A168: December | B168: 3.2 | C168: 0.48 | D168: 0.17 | E168: 1.536 | F168: 0.544 | G168: 0.9 | H168: 2.3
A169: Total= | B169: =SUM(B157:B168) -> 39.3
A171: Months | B171: Runoff, Paved Lot Inches | C171: Runoff, Unpaved Lot Inches | D171: Net Precipitation Inches
A172: Nov-Apr | B172: =SUM(E167:E168,E157:E160) -> 8.88 | C172: =SUM(F167:F168,F157:F160) -> 3.362 | D172: =SUM(H167:H168,H157:H160) -> 9.7
A173: May-Oct | B173: =SUM(E161:E166) -> 11.804 | C173: =SUM(F161:F166) -> 5.139 | D173: =SUM(H161:H166) -> -0.4
A175: 25 Yr Runoff
A176: Lot | B176: P25 | C176: Runoff Curve Number | D176: Runoff Inches (Table 2-2a, EFM-2)
A177: Paved | B177: 5 | C177: 97 | D177: 4.65
A178: Unpaved | B178: 5 | C178: 90 | D178: 3.88
A193: State = | B193: PA
A194: County = | B194: Northumberland
A195: Using Procedure Outlined in SCS ASMF N12-76.1 - N12-76.13
A196: Data Collected from the following internet web site on Feb, 14, 1999:
A197: www.psu.edu/docs/CASDEPT/AGRONOMY/EXTENSION/NMPennState/raindata/counties3.html
A198: Month | B198: Direct Precipitation Inches | C198: % of Mean Precipitation Paved Lot (CN - 97) | D198: % of Mean Precipitation Unpaved Lot (CN - 90) | E198: Drainage Area, Inches of Runoff - Paved | F198: Drainage Area, Inches of Runoff - Unpaved | G198: *Direct Evaporation Inches | H198: Net Precipitation Inches
A199: January | B199: 2.6 | C199: 0.48 | D199: 0.17 | E199: =B199*C199 -> 1.248 | F199: =B199*D199 -> 0.442 | G199: 0.9 | H199: =B199-G199 -> 1.7
A200: February | B200: 2.6 | C200: 0.5 | D200: 0.19 | E200: =B200*C200 -> 1.3 | F200: =B200*D200 -> 0.494 | G200: 0.9 | H200: =B200-G200 -> 1.7
A201: March | B201: 3 | C201: 0.5 | D201: 0.19 | E201: 1.5 | F201: 0.57 | G201: 1.5 | H201: 1.5
A202: April | B202: 3.2 | C202: 0.5 | D202: 0.19 | E202: 1.6 | F202: 0.608 | G202: 2.1 | H202: 1.1
A203: May | B203: 3.7 | C203: 0.5 | D203: 0.19 | E203: 1.85 | F203: 0.703 | G203: 3 | H203: 0.7
A204: June | B204: 4.5 | C204: 0.55 | D204: 0.24 | E204: 2.475 | F204: 1.08 | G204: 3.9 | H204: 0.6
A205: July | B205: 3.5 | C205: 0.55 | D205: 0.24 | E205: 1.925 | F205: 0.84 | G205: 4.5 | H205: -1
A206: August | B206: 3.2 | C206: 0.58 | D206: 0.27 | E206: 1.856 | F206: 0.864 | G206: 4.2 | H206: -1
A207: September | B207: 4 | C207: 0.58 | D207: 0.27 | E207: 2.32 | F207: 1.08 | G207: 3.6 | H207: 0.4
A208: October | B208: 2.6 | C208: 0.53 | D208: 0.22 | E208: 1.378 | F208: 0.572 | G208: 2.7 | H208: -0.1
A209: November | B209: 3.2 | C209: 0.53 | D209: 0.22 | E209: 1.696 | F209: 0.704 | G209: 1.8 | H209: 1.4
A210: December | B210: 3.1 | C210: 0.48 | D210: 0.17 | E210: 1.488 | F210: 0.527 | G210: 0.9 | H210: 2.2
A211: Total= | B211: =SUM(B199:B210) -> 39.2
A213: Months | B213: Runoff, Paved Lot Inches | C213: Runoff, Unpaved Lot Inches | D213: Net Precipitation Inches
A214: Nov-Apr | B214: =SUM(E209:E210,E199:E202) -> 8.832 | C214: =SUM(F209:F210,F199:F202) -> 3.345 | D214: =SUM(H209:H210,H199:H202) -> 9.6
A215: May-Oct | B215: =SUM(E203:E208) -> 11.804 | C215: =SUM(F203:F208) -> 5.139 | D215: =SUM(H203:H208) -> -0.4
A217: 25 Yr Runoff
A218: Lot | B218: P25 | C218: Runoff Curve Number | D218: Runoff Inches (Table 2-2a, EFM-2)
A219: Paved | B219: 5 | C219: 97 | D219: 4.65
A220: Unpaved | B220: 5 | C220: 90 | D220: 3.88
A235: State = | B235: PA
A236: County = | B236: Snyder
A237: Using Procedure Outlined in SCS ASMF N12-76.1 - N12-76.13
A238: Data Collected from the following internet web site on Feb, 14, 1999:
A239: www.psu.edu/docs/CASDEPT/AGRONOMY/EXTENSION/NMPennState/raindata/counties3.html
A240: Month | B240: Direct Precipitation Inches | C240: % of Mean Precipitation Paved Lot (CN - 97) | D240: % of Mean Precipitation Unpaved Lot (CN - 90) | E240: Drainage Area, Inches of Runoff - Paved | F240: Drainage Area, Inches of Runoff - Unpaved | G240: *Direct Evaporation Inches | H240: Net Precipitation Inches
A241: January | B241: 2.6 | C241: 0.48 | D241: 0.17 | E241: =B241*C241 -> 1.248 | F241: =B241*D241 -> 0.442 | G241: 0.9 | H241: =B241-G241 -> 1.7
A242: February | B242: 2.6 | C242: 0.5 | D242: 0.19 | E242: =B242*C242 -> 1.3 | F242: =B242*D242 -> 0.494 | G242: 0.9 | H242: =B242-G242 -> 1.7
A243: March | B243: 3 | C243: 0.5 | D243: 0.19 | E243: 1.5 | F243: 0.57 | G243: 1.5 | H243: 1.5
A244: April | B244: 3.2 | C244: 0.5 | D244: 0.19 | E244: 1.6 | F244: 0.608 | G244: 2.1 | H244: 1.1
A245: May | B245: 3.7 | C245: 0.5 | D245: 0.19 | E245: 1.85 | F245: 0.703 | G245: 3 | H245: 0.7
A246: June | B246: 4.5 | C246: 0.55 | D246: 0.24 | E246: 2.475 | F246: 1.08 | G246: 3.9 | H246: 0.6
A247: July | B247: 3.5 | C247: 0.55 | D247: 0.24 | E247: 1.925 | F247: 0.84 | G247: 4.5 | H247: -1
A248: August | B248: 3.2 | C248: 0.59 | D248: 0.28 | E248: 1.888 | F248: 0.896 | G248: 4.2 | H248: -1
A249: September | B249: 4 | C249: 0.59 | D249: 0.28 | E249: 2.36 | F249: 1.12 | G249: 3.6 | H249: 0.4
A250: October | B250: 2.6 | C250: 0.53 | D250: 0.22 | E250: 1.378 | F250: 0.572 | G250: 2.7 | H250: -0.1
A251: November | B251: 3.2 | C251: 0.53 | D251: 0.22 | E251: 1.696 | F251: 0.704 | G251: 1.8 | H251: 1.4
A252: December | B252: 3.1 | C252: 0.48 | D252: 0.17 | E252: 1.488 | F252: 0.527 | G252: 0.9 | H252: 2.2
A253: Total= | B253: =SUM(B241:B252) -> 39.2
A255: Months | B255: Runoff, Paved Lot Inches | C255: Runoff, Unpaved Lot Inches | D255: Net Precipitation Inches
A256: Nov-Apr | B256: =SUM(E251:E252,E241:E244) -> 8.832 | C256: =SUM(F251:F252,F241:F244) -> 3.345 | D256: =SUM(H251:H252,H241:H244) -> 9.6
A257: May-Oct | B257: =SUM(E245:E250) -> 11.876 | C257: =SUM(F245:F250) -> 5.211 | D257: =SUM(H245:H250) -> -0.4
A259: 25 Yr Runoff
A260: Lot | B260: P25 | C260: Runoff Curve Number | D260: Runoff Inches (Table 2-2a, EFM-2)
A261: Paved | B261: 5 | C261: 97 | D261: 4.65
A262: Unpaved | B262: 5 | C262: 90 | D262: 3.88
A277: State = | B277: PA
A278: County = | B278: Tioga
A279: Using Procedure Outlined in SCS ASMF N12-76.1 - N12-76.13
A280: Data Collected from the following internet web site on Feb, 14, 1999:
A281: www.psu.edu/docs/CASDEPT/AGRONOMY/EXTENSION/NMPennState/raindata/counties3.html
A282: Month | B282: Direct Precipitation Inches | C282: % of Mean Precipitation Paved Lot (CN - 97) | D282: % of Mean Precipitation Unpaved Lot (CN - 90) | E282: Drainage Area, Inches of Runoff - Paved | F282: Drainage Area, Inches of Runoff - Unpaved | G282: *Direct Evaporation Inches | H282: Net Precipitation Inches
A283: January | B283: 1.8 | C283: 0.43 | D283: 0.12 | E283: =B283*C283 -> 0.774 | F283: =B283*D283 -> 0.216 | G283: 0.8 | H283: =B283-G283 -> 1
A284: February | B284: 1.8 | C284: 0.46 | D284: 0.15 | E284: =B284*C284 -> 0.828 | F284: =B284*D284 -> 0.27 | G284: 0.8 | H284: =B284-G284 -> 1
A285: March | B285: 2.7 | C285: 0.46 | D285: 0.15 | E285: 1.242 | F285: 0.405 | G285: 1.4 | H285: 1.3
A286: April | B286: 2.8 | C286: 0.48 | D286: 0.17 | E286: 1.344 | F286: 0.476 | G286: 1.9 | H286: 0.9
A287: May | B287: 3.9 | C287: 0.48 | D287: 0.17 | E287: 1.872 | F287: 0.663 | G287: 2.8 | H287: 1.1
A288: June | B288: 3.3 | C288: 0.53 | D288: 0.22 | E288: 1.749 | F288: 0.726 | G288: 3.6 | H288: -0.3
A289: July | B289: 4 | C289: 0.53 | D289: 0.22 | E289: 2.12 | F289: 0.88 | G289: 4.1 | H289: -0.1
A290: August | B290: 4 | C290: 0.55 | D290: 0.24 | E290: 2.2 | F290: 0.96 | G290: 3.9 | H290: 0.1
A291: September | B291: 3.2 | C291: 0.55 | D291: 0.22 | E291: 1.76 | F291: 0.704 | G291: 4.1 | H291: -0.9
A292: October | B292: 2.8 | C292: 0.5 | D292: 0.19 | E292: 1.4 | F292: 0.532 | G292: 2.5 | H292: 0.3
A293: November | B293: 2.4 | C293: 0.5 | D293: 0.19 | E293: 1.2 | F293: 0.456 | G293: 1.7 | H293: 0.7
A294: December | B294: 2 | C294: 0.43 | D294: 0.12 | E294: 0.86 | F294: 0.24 | G294: 0.8 | H294: 1.2
... 34 more rows

Sheet CIRC. TANK
A4: COUNTY | B4: ='Waste Volumes'!B4 -> Name | F4: DATE | G4: ='Waste Volumes'!G4 -> 00:00:00
A5: OWNER | B5: ='Waste Volumes'!B5 -> Farmer's Name | F5: ADDRESS | G5: ='Waste Volumes'!G5 -> 
A6: PREPARER | B6: ='Waste Volumes'!B6 -> 0 | F6: TITLE | G6: ='Waste Volumes'!G6 -> 0 | I6: DATE | J6: ='Waste Volumes'!J6 -> 0
A7: CHECKED | B7: ='Waste Volumes'!B7 ->  | F7: TITLE | G7: ='Waste Volumes'!G7 ->  | I7: DATE | J7: ='Waste Volumes'!J7 -> 
A10: STORAGE VOLUME REQUIRED | D10: ='Waste Volumes'!D56 -> 0 | E10: cu. ft.
A11: STORAGE LENGTH | D11: ='Waste Volumes'!F56 -> 0 | E11: days
D12: TRIAL 1 | F12: TRIAL 2 | H12: TRIAL 3 | J12: TRIAL 4
A13: A. TOTAL TANK DEPTH | D13: 8 | E13: FT. | F13: 10 | G13: FT. | H13: 12 | I13: FT. | J13: 14 | K13: FT. | P13: =IF($C$27=1,D13,IF($C$27=2,F13,IF($C$27=3,H13,IF($C$27=4,J13)))) -> 12
A14: B. FREEBOARD DEPTH | D14: 0.5 | E14: FT. | F14: 0.5 | G14: FT. | H14: 0.5 | I14: FT. | J14: 0.5 | K14: FT. | P14: 0.5
A15: C. RAINFALL DEPTH | D15: =$D$11/180+0.4 -> 0.4 | E15: FT. | F15: =$D$11/180+0.4 -> 0.4 | G15: FT. | H15: =$D$11/180+0.4 -> 0.4 | I15: FT. | J15: =$D$11/180+0.4 -> 0.4 | K15: FT. | P15: 0.4
A16: D. MIN. PUMPOUT DEPTH | D16: 0.5 | E16: FT. | F16: 0.5 | G16: FT. | H16: 0.5 | I16: FT. | J16: 0.5 | K16: FT. | P16: 0.5
A17: E. STORAGE DEPTH | D17: =D13-D14-D15-D16 -> 6.6 | E17: FT. | F17: =F13-F14-F15-F16 -> 8.6 | G17: FT. | H17: =H13-H14-H15-H16 -> 10.6 | I17: FT. | J17: =J13-J14-J15-J16 -> 12.6 | K17: FT. | P17: 10.6
A18: G. REQ'D TANK DIAMETER | D18: =ROUNDUP(2*SQRT($D$10/(PI()*D17)),0) -> 0 | E18: FT. | F18: =ROUNDUP(2*SQRT($D$10/(PI()*F17)),0) -> 0 | G18: FT. | H18: =ROUNDUP(2*SQRT($D$10/(PI()*H17)),0) -> 0 | I18: FT. | J18: =ROUNDUP(2*SQRT($D$10/(PI()*J17)),0) -> 0 | K18: FT. | P18: 0
A19: ACTUAL TANK CAPACITY OF
A20: STORAGE DEPTH | D20: =PI()*POWER((D18/2),2)*D17 -> 0 | E20: cu. ft. | F20: =PI()*POWER((F18/2),2)*F17 -> 0 | G20: cu. ft. | H20: =PI()*POWER((H18/2),2)*H17 -> 0 | I20: cu. ft. | J20: =PI()*POWER((J18/2),2)*J17 -> 0 | K20: cu. ft.
D21: =D20*7.5 -> 0 | E21: GAL | F21: =F20*7.5 -> 0 | G21: GAL | H21: =H20*7.5 -> 0 | I21: GAL | J21: =J20*7.5 -> 0 | K21: GAL
A22: ACTUAL TANK CAPACITY AT
A23: FREEBOARD DEPTH | D23: =PI()*POWER((D18/2),2)*(D13-D14) -> 0 | E23: cu. ft. | F23: =PI()*POWER((F18/2),2)*(F13-F14) -> 0 | G23: cu. ft. | H23: =PI()*POWER((H18/2),2)*(H13-H14) -> 0 | I23: cu. ft. | J23: =PI()*POWER((J18/2),2)*(J13-J14) -> 0 | K23: cu. ft.
D24: =D23*7.5 -> 0 | E24: GAL | F24: =F23*7.5 -> 0 | G24: GAL | H24: =H23*7.5 -> 0 | I24: GAL | J24: =J23*7.5 -> 0 | K24: GAL
B27: SELECT TRIAL # | C27: 3
I29: TANK DEPTH | J29: =P13 -> 12 | K29: FT
I30: FREEBOARD | J30: =P14 -> 0.5 | K30: FT
I31: RAIN FALL | J31: =P15 -> 0.4 | K31: FT
I34: STORAGE
I35: DEPTH | J35: =P17 -> 10.6 | K35: FT
I38: PUMP OUT | J38: =P16 -> 0.5 | K38: FT

Sheet Earthen Pond
A4: COUNTY | B4: ='Waste Volumes'!B4 -> Name | F4: DATE | G4: ='Waste Volumes'!G4 -> 00:00:00
A5: OWNER | B5: ='Waste Volumes'!B5 -> Farmer's Name | F5: ADDRESS | G5: ='Waste Volumes'!G5 -> 
A6: PREPARER | B6: ='Waste Volumes'!B6 -> 0 | F6: TITLE | G6: ='Waste Volumes'!G6 -> 0 | I6: DATE | J6: ='Waste Volumes'!J6 -> 0
A7: CHECKED | B7: ='Waste Volumes'!B7 ->  | F7: TITLE | G7: ='Waste Volumes'!G7 ->  | I7: DATE | J7: ='Waste Volumes'!J7 -> 
A10: STORAGE VOLUME REQUIRED | D10: ='Waste Volumes'!D56 -> 0 | E10: cu. ft. | G10: SIDE SLOPE | H10: 2 | I10: :1
A11: DESIGN FULL | D11: =D10-'Waste Volumes'!F31*'Waste Volumes'!F33/12 -> 0 | E11: (LESS 25 YR RUNOFF)
A12: DESIGN 1/2 FULL | D12: =D10/2 -> 0 | E12: (LESS 25 YR RUNOFF)
A13: STORAGE LENGTH | D13: ='Waste Volumes'!F56 -> 0 | E13: days
A15: STORAGE FROM COMPUTATION | E15: TOTAL STORAGE | G15: Design Full | I15: Design 1/2 Full
A16: A. TOTAL DEPTH | E16: 10 | F16: FT. | G16: =E16 -> 10 | H16: FT. | I16: =E16 -> 10 | J16: FT.
A17: B. FREEBOARD DEPTH | E17: 1 | F17: FT. | G17: =E17 -> 1 | H17: FT. | I17: =E17 -> 1 | J17: FT.
A18: C. RAINFALL DEPTH | E18: =$D$13/180+0.4 -> 0.4 | F18: FT. | G18: =$D$13/180+0.4 -> 0.4 | H18: FT. | I18: =$D$13/180+0.4 -> 0.4 | J18: FT.
A19: D. MIN. PUMPOUT DEPTH | E19: 0.5 | F19: FT. | G19: =E19 -> 0.5 | H19: FT. | I19: =E19 -> 0.5 | J19: FT.
A20: E. STORAGE DEPTH | E20: =E16-E17-E18-E19 -> 8.1 | F20: FT. | G20: 8.1 | H20: FT. | I20: 8.1 | J20: FT.
A21: F. TOP WIDTH | E21: 100 | F21: FT. | G21: =E21 -> 100 | H21: FT. | I21: =E21 -> 100 | J21: FT.
A22: G. TOP LENGTH | E22: 100 | F22: FT. | G22: =E22 -> 100 | H22: FT. | I22: =E22 -> 100 | J22: FT.
A23: H. TOP WIDTH AT STORAGE DEPTH | E23: =E21-$H$10*2*(E$17+E$18) -> 94.4 | F23: FT. | G23: =G25+$H$10*2*($G$20) -> 94.4 | H23: FT. | I23: =I25+$H$10*2*($I$20) -> 94.4 | J23: FT.
A24: I. TOP LENGTH AT STORAGE DEPTH | E24: =E22-$H$10*2*(E$17+E$18) -> 94.4 | F24: FT. | G24: =G26+$H$10*2*($G$20) -> 94.4 | H24: FT. | I24: =I26+$H$10*2*($I$20) -> 94.4 | J24: FT.
A25: J. BOTTOM WIDTH AT STORAGE DEPTH | E25: =E21-$H$10*2*(E16-E19) -> 62 | F25: FT. | G25: =E25 -> 62 | H25: FT. | I25: =I21-$H$10*2*(I16-I19) -> 62 | J25: FT.
A26: K. BOTTOM LENGTH AT STORAGE DEPTH | E26: =E22-$H$10*2*(E16-E19) -> 62 | F26: FT. | G26: =E26 -> 62 | H26: FT. | I26: =I22-$H$10*2*(I16-I19) -> 62 | J26: FT.
A27: L. AREA @ BASE STORAGE DEPTH | E27: =E25*E26 -> 3844 | F27: FT.2 | G27: =G25*G26 -> 3844 | H27: FT.2 | I27: =I25*I26 -> 3844 | J27: FT.2
A28: M. AREA @ TOP STORAGE DEPTH | E28: =E23*E24 -> 8911.36 | F28: FT.2 | G28: =G23*G24 -> 8911.36 | H28: FT.2 | I28: =I23*I24 -> 8911.36 | J28: FT.2
A29: N. CALCULATED STORAGE VOLUME | E29: =(E$23*E$24*E$20)-($H$10*E$23*(E$20)^2)-($H$10*E$24*(E$20)^2)+1.33*((($H$10)^2)*(E$20)^3) -> 50234.94612 | F29: CU. FT. | G29: =(G$23*G$24*G$20)-($H$10*G$23*(G$20)^2)-($H$10*G$24*(G$20)^2)+1.33*((($H$10)^2)*(G$20)^3) -> 50234.94612 | H29: CU. FT. | I29: =(I$23*I$24*I$20)-($H$10*I$23*(I$20)^2)-($H$10*I$24*(I$20)^2)+1.33*((($H$10)^2)*(I$20)^3) -> 50234.94612 | J29: CU. FT.
C32: USE TRIAL # | E32: 1
C35: TOP WIDTH | D35: =CHOOSE($E$32+1,0,E21,G21,I21) -> 100 | E35: FT | G35: BOTTOM WIDTH | H35: =D35-(CHOOSE($E$32+1,0,$E$16,$G$16,$I$16,)*2)*$H$10 -> 60 | I35: FT
C36: TOP LENGTH | D36: =CHOOSE($E$32+1,0,E22,G22,I22) -> 100 | E36: FT | G36: BOTTOM LENGTH | H36: =D36-(CHOOSE($E$32+1,0,$E$16,$G$16,$I$16,)*2)*$H$10 -> 60 | I36: FT
K38: TOTAL DEPTH | L38: =CHOOSE($E$32+1,0,E16,G16,I16) -> 10 | M38: FT.
K39: FREEBOARD | L39: =CHOOSE($E$32+1,0,E17,G17,I17) -> 1 | M39: FT.
K40: RAINFALL | L40: =CHOOSE($E$32+1,0,E18,G18,I18) -> 0.4 | M40: FT.
L42: DEPTH TO MAXIMUM STORAGE
K43: FULL | L43: =E20+E19+E18-0.4 -> 8.6 | M43: FT.
K44: DESIGN | L44: =G20+G19+E18-0.4 -> 8.6 | M44: FT.
K45: 1/2 DESIGN | L45: =I20+I19+E18-0.4 -> 8.6 | M45: FT.
K47: PUMPOUT | L47: =CHOOSE($E$32+1,0,E19,G19,I19) -> 0.5 | M47: FT.

Sheet RAMP
A4: COUNTY | B4: ='Waste Volumes'!B4 -> Name | F4: DATE | G4: ='Waste Volumes'!G4 -> 00:00:00
A5: OWNER | B5: ='Waste Volumes'!B5 -> Farmer's Name | F5: ADDRESS | G5: ='Waste Volumes'!G5 -> 
A6: PREPARER | B6: ='Waste Volumes'!B6 -> 0 | F6: TITLE | G6: ='Waste Volumes'!G6 -> 0 | I6: DATE | J6: ='Waste Volumes'!J6 -> 0
A7: CHECKED | B7: ='Waste Volumes'!B7 ->  | F7: TITLE | G7: ='Waste Volumes'!G7 ->  | I7: DATE | J7: ='Waste Volumes'!J7 -> 
A10: STORAGE VOLUME REQUIRED | D10: ='Waste Volumes'!D56 -> 0 | E10: cu. ft. | G10: SIDE SLOPE | H10: ='Earthen Pond '!H10 -> 2 | I10: :1
A11: STORAGE LENGTH | D11: ='Waste Volumes'!F56 -> 0 | E11: days
A13: A. RAMP SLOPE = | D13: 8 | E13: FT.
A14: B. STORAGE DEPTH= | D14: ='Earthen Pond '!L43 -> 8.6 | E14: FT.
A15: C. PIT SIDE SLOPE = | D15: =H10 -> 2 | E15: FT./ 1 FT.
A16: D. RAMP WIDTH = | D16: 12 | E16: FT.
A17: E. TOTAL VOLUME OF RAMP = | D17: =(D16/2+(D14*D15)/3)*(D13-D15)*POWER(D14,2) -> 5206.784 | E17: cu. ft.

Sheet Rect Tank
A4: COUNTY | B4: ='Waste Volumes'!B4 -> Name | F4: DATE | G4: ='Waste Volumes'!G4 -> 00:00:00
A5: OWNER | B5: ='Waste Volumes'!B5 -> Farmer's Name | F5: ADDRESS | G5: ='Waste Volumes'!G5 -> 
A6: PREPARER | B6: ='Waste Volumes'!B6 -> 0 | F6: TITLE | G6: ='Waste Volumes'!G6 -> 0 | I6: DATE | J6: ='Waste Volumes'!J6 -> 0
A7: CHECKED | B7: ='Waste Volumes'!B7 ->  | F7: TITLE | G7: ='Waste Volumes'!G7 ->  | I7: DATE | J7: ='Waste Volumes'!J7 -> 
A10: STORAGE VOLUME REQUIRED | D10: ='Waste Volumes'!D56 -> 0 | E10: cu. ft.
A11: STORAGE LENGTH | D11: ='Waste Volumes'!F56 -> 0 | E11: days
A13: A. TOTAL TANK DEPTH | D13: 4 | E13: FT.
A14: B. FREEBOARD DEPTH | D14: 0.5 | E14: FT.
A15: C. RAINFALL DEPTH | D15: 0 | E15: FT.
A16: D. MIN. PUMPOUT DEPTH | D16: 0.5 | E16: FT.
A17: E. STORAGE DEPTH | D17: =D13-D14-D15-D16 -> 3 | E17: FT.
A18: F. INSIDE LENGTH | D18: 8 | E18: FT.
A19: G. INSIDE WIDTH | D19: =D10/(D17*D18) -> 0 | E19: FT.
I28: FREEBOARD | J28: =D14 -> 0.5 | K28: FT
I29: RAIN FALL | J29: =D15 -> 0 | K29: FT
I32: STORAGE
I33: DEPTH | J33: =D17 -> 3 | K33: FT
I36: PUMP OUT | J36: =D16 -> 0.5 | K36: FT

Sheet Bedding
